fUSD/lending_fUSD_20240425
["ID","MTS","AMOUNT","RATE_DAILY","PERIOD"]
[323543482,1714080640092,-504.3245371,0.00010958,2]
[323543483,1714080640102,-500.0,0.00010958,2]
[323543484,1714080640112,-500.0,0.00010958,2]
[323543485,1714080640121,-525.94,0.00010958,2]
[323543486,1714080640132,-500.0,0.00010958,2]
[323543487,1714080640143,-500.0,0.00010958,2]
[323543488,1714080640152,-500.0,0.00010958,2]
[323543489,1714080640162,-500.0,0.00010958,2]
[323543490,1714080640171,-307.41805378,0.00010958,2]
[323543491,1714080640180,-500.0,0.00010958,2]
[323543492,1714080640190,-500.0,0.00010958,2]
[323543493,1714080640200,-500.0,0.00010958,2]
[323543494,1714080640209,-500.0,0.00010958,2]
[323543495,1714080640218,-500.0,0.00010958,2]
[323543496,1714080640228,-500.0,0.00010958,2]
[323543497,1714080640237,-500.0,0.00010958,2]
[323543498,1714080640247,-500.0,0.00010958,2]
[323543499,1714080640257,-500.0,0.00010958,2]
[323543500,1714080640266,-500.0,0.00010958,2]
[323543501,1714080640276,-1182.76,0.00010958,2]
[323543502,1714080640286,-500.0,0.00010958,2]
[323543503,1714080640296,-500.0,0.00010958,2]
[323543504,1714080640305,-625.59933417,0.00010958,2]
[323543505,1714080640315,-500.0,0.00010958,2]
[323543506,1714080640324,-500.0,0.00010958,2]
[323543507,1714080640334,-520.00616961,0.00010958,2]
[323543508,1714080640343,-504.50057927,0.00010958,2]
[323543509,1714080640353,-256.44522037,0.00010958,2]
[323543510,1714080640363,-500.0,0.00010958,2]
[323543511,1714080640372,-500.0,0.00010958,2]
[323543512,1714080640382,-557.33838369,0.00010958,2]
[323543513,1714080640391,-500.0,0.00010958,2]
[323543514,1714080640401,-500.0,0.00010958,2]
[323543515,1714080640411,-500.0,0.00010958,2]
[323543516,1714080640420,-1996.25,0.00010958,2]
[323543517,1714080640430,-504.25,0.00010958,2]
[323543518,1714080640439,-500.0,0.00010958,2]
[323543519,1714080640449,-500.0,0.00010958,2]
[323543520,1714080640458,-500.0,0.00010958,2]
[323543521,1714080640467,-500.0,0.00010958,2]
[323543522,1714080640477,-500.0,0.00010958,2]
[323543523,1714080640486,-500.0,0.00010958,2]
[323543524,1714080640495,-280.96461844,0.00010958,2]
[323543525,1714080640506,-525.78,0.00010958,2]
[323543526,1714080640515,-413.99437178,0.00010958,2]
[323543527,1714080640527,-1476.4,0.00010958,2]
[323543528,1714080640537,-500.0,0.00010958,2]
[323543529,1714080640546,-500.0,0.00010958,2]
[323543530,1714080640555,-500.0,0.00010958,2]
[323543531,1714080640566,-500.0,0.00010958,2]
[323543532,1714080640575,-500.0,0.00010958,2]
[323543533,1714080640586,-500.0,0.00010958,2]
[323543534,1714080640596,-500.0,0.00010958,2]
[323543535,1714080640606,-500.0,0.00010958,2]
[323543536,1714080640615,-504.20712253,0.00010958,2]
[323543537,1714080640624,-500.0,0.00010958,2]
[323543538,1714080640633,-500.0,0.00010958,2]
[323543539,1714080640643,-620.2,0.00010958,2]
[323543540,1714080640653,-505.4239124,0.00010958,2]
[323543541,1714080640662,-500.0,0.00010958,2]
[323543542,1714080640671,-500.0,0.00010958,2]
[323543543,1714080640681,-500.0,0.00010958,2]
[323543544,1714080640690,-880.43,0.00010958,2]
[323543545,1714080640699,-500.0,0.00010958,2]
[323543546,1714080640708,-500.0,0.00010958,2]
[323543547,1714080640717,-500.0,0.00010958,2]
[323543548,1714080640727,-675.03,0.00010958,2]
[323543549,1714080640736,-500.0,0.00010958,2]
[323543550,1714080640745,-500.0,0.00010958,2]
[323543551,1714080640755,-282.09,0.00010958,2]
[323543552,1714080640764,-1103.98,0.00010958,2]
[323543553,1714080640774,-500.0,0.00010958,2]
[323543554,1714080640783,-1165.81,0.00010958,2]
[323543555,1714080640793,-500.0,0.00010958,2]
[323543556,1714080640803,-1249.78,0.00010958,2]
[323543557,1714080640812,-500.0,0.00010958,2]
[323543558,1714080640821,-500.0,0.00010958,2]
[323543559,1714080640831,-500.0,0.00010958,2]
[323543560,1714080640840,-500.0,0.00010958,2]
[323543561,1714080640849,-500.0,0.00010958,2]
[323543562,1714080640859,-500.0,0.00010958,2]
[323543563,1714080640868,-500.0,0.00010958,2]
[323543564,1714080640878,-500.0,0.00010958,2]
[323543565,1714080640887,-254.82,0.00010958,2]
[323543566,1714080640897,-1098.48,0.00010958,2]
[323543567,1714080640906,-361.03546317,0.00010958,2]
[323543568,1714080640918,-500.0,0.00010958,2]
[323543569,1714080640927,-500.0,0.00010958,2]
[323543570,1714080640937,-500.0,0.00010958,2]
[323543571,1714080640948,-500.0,0.00010958,2]
[323543572,1714080640960,-500.0,0.00010958,2]
[323543573,1714080640970,-625.46,0.00010958,2]
[323543574,1714080640980,-150.0,0.00010958,2]
[323543575,1714080640990,-500.0,0.00010958,2]
[323543576,1714080640999,-500.0,0.00010958,2]
[323543577,1714080641009,-500.0,0.00010958,2]
[323543578,1714080641018,-500.0,0.00010958,2]
[323543579,1714080641027,-500.0,0.00010958,2]
[323543580,1714080641039,-500.0,0.00010958,2]
[323543581,1714080641050,-500.0,0.00010958,2]
[323543582,1714080641058,-500.0,0.00010958,2]
[323543583,1714080641067,-245.72,0.00010958,2]
[323543584,1714080641075,-500.0,0.00010958,2]
[323543585,1714080641084,-463.18,0.00010958,2]
[323543586,1714080641094,-500.0,0.00010958,2]
[323543587,1714080641104,-500.0,0.00010958,2]
[323543588,1714080641113,-500.0,0.00010958,2]
[323543589,1714080641123,-500.0,0.00010958,2]
[323543590,1714080641132,-203.73732083,0.00010958,2]
[323543591,1714080641142,-500.0,0.00010958,2]
[323543592,1714080641152,-557.05,0.00010958,2]
[323543593,1714080641161,-500.0,0.00010958,2]
[323543594,1714080641170,-1315.36,0.00010958,2]
[323543595,1714080641180,-500.0,0.00010958,2]
[323543596,1714080641189,-500.0,0.00010958,2]
[323543597,1714080641199,-500.0,0.00010958,2]
[323543598,1714080641208,-500.0,0.00010958,2]
[323543599,1714080641217,-500.0,0.00010958,2]
[323543600,1714080641226,-500.0,0.00010958,2]
[323543601,1714080641235,-500.0,0.00010958,2]
[323543602,1714080641245,-500.0,0.00010958,2]
[323543603,1714080641254,-500.0,0.00010958,2]
[323543604,1714080641264,-500.0,0.00010958,2]
[323543605,1714080641273,-500.0,0.00010958,2]
[323543606,1714080641282,-862.83,0.00010958,2]
[323543607,1714080641293,-504.17834275,0.00010958,2]
[323543608,1714080641303,-500.0,0.00010958,2]
[323543609,1714080641312,-500.0,0.00010958,2]
[323543610,1714080641323,-500.0,0.00010958,2]
[323543611,1714080641332,-718.25,0.00010958,2]
[323543612,1714080641342,-523.83669044,0.00010958,2]
[323543613,1714080641351,-500.0,0.00010958,2]
[323543614,1714080641361,-500.0,0.00010958,2]
[323543615,1714080641371,-500.0,0.00010958,2]
[323543616,1714080641381,-500.0,0.00010958,2]
[323543617,1714080641391,-277.17736497,0.00010958,2]
[323543618,1714080641401,-511.84844255,0.00010958,2]
[323543619,1714080641411,-500.0,0.00010958,2]
[323543620,1714080641420,-500.0,0.00010958,2]
[323543621,1714080641430,-500.0,0.00010958,2]
[323543622,1714080641439,-500.0,0.00010958,2]
[323543623,1714080641448,-500.0,0.00010958,2]
[323543624,1714080641458,-527.90030401,0.00010958,2]
[323543625,1714080641467,-500.0,0.00010958,2]
[323543626,1714080641476,-500.0,0.00010958,2]
[323543627,1714080641485,-500.0,0.00010958,2]
[323543628,1714080641495,-504.6358551,0.00010958,2]
[323543629,1714080641505,-500.0,0.00010958,2]
[323543630,1714080641515,-500.0,0.00010958,2]
[323543631,1714080641525,-500.0,0.00010958,2]
[323543632,1714080641534,-500.0,0.00010958,2]
[323543633,1714080641545,-500.0,0.00010958,2]
[323543634,1714080641555,-500.0,0.00010958,2]
[323543635,1714080641564,-500.0,0.00010958,2]
[323543636,1714080641573,-500.0,0.00010958,2]
[323543637,1714080641582,-500.0,0.00010958,2]
[323543638,1714080641593,-500.0,0.00010958,2]
[323543639,1714080641603,-500.0,0.00010958,2]
[323543640,1714080641612,-500.0,0.00010958,2]
[323543641,1714080641622,-500.0,0.00010958,2]
[323543642,1714080641631,-500.0,0.00010958,2]
[323543643,1714080641640,-543.08,0.00010958,2]
[323543644,1714080641651,-500.0,0.00010958,2]
[323543645,1714080641661,-500.0,0.00010958,2]
[323543646,1714080641670,-505.01809633,0.00010958,2]
[323543647,1714080641680,-527.37,0.00010958,2]
[323543648,1714080641689,-500.0,0.00010958,2]
[323543649,1714080641698,-500.0,0.00010958,2]
[323543650,1714080641707,-507.8132636,0.00010958,2]
[323543651,1714080641716,-500.0,0.00010958,2]
[323543652,1714080641725,-500.0,0.00010958,2]
[323543653,1714080641734,-500.0,0.00010958,2]
[323543654,1714080641743,-544.68,0.00010958,2]
[323543655,1714080641752,-500.0,0.00010958,2]
[323543656,1714080641761,-500.0,0.00010958,2]
[323543657,1714080641771,-3829.47,0.00010958,2]
[323543658,1714080641780,-500.0,0.00010958,2]
[323543659,1714080641790,-500.0,0.00010958,2]
[323543660,1714080641798,-480.81089533,0.00010958,2]
[323543661,1714080641807,-500.0,0.00010958,2]
[323543662,1714080641816,-559.82,0.00010958,2]
[323543663,1714080641826,-769.83,0.00010958,2]
[323543664,1714080641834,-500.0,0.00010958,2]
[323543665,1714080641843,-500.0,0.00010958,2]
[323543666,1714080641853,-500.0,0.00010958,2]
[323543667,1714080641862,-500.0,0.00010958,2]
[323543668,1714080641871,-500.0,0.00010958,2]
[323543669,1714080641880,-21849.76,0.00010958,2]
[323543670,1714080641889,-506.59336122,0.00010958,2]
[323543671,1714080641898,-500.0,0.00010958,2]
[323543672,1714080641907,-500.0,0.00010958,2]
[323543673,1714080641916,-631.16365849,0.00010958,2]
[323543674,1714080641925,-500.0,0.00010958,2]
[323543675,1714080641934,-500.0,0.00010958,2]
[323543676,1714080641943,-500.0,0.00010958,2]
[323543677,1714080641952,-502.45,0.00010958,2]
[323543678,1714080641961,-765.12,0.00010958,2]
[323543679,1714080641970,-500.0,0.00010958,2]
[323543680,1714080641979,-500.0,0.00010958,2]
[323543681,1714080641989,-505.06440966,0.00010958,2]
[323543682,1714080641998,-500.0,0.00010958,2]
[323543683,1714080642008,-500.0,0.00010958,2]
[323543684,1714080642018,-502.49191359,0.00010958,2]
[323543685,1714080642027,-500.0,0.00010958,2]
[323543686,1714080642037,-8090.07,0.00010958,2]
[323543687,1714080642047,-500.0,0.00010958,2]
[323543688,1714080642057,-500.0,0.00010958,2]
[323543689,1714080642067,-556.52417933,0.00010958,2]
[323543690,1714080642075,-500.0,0.00010958,2]
[323543691,1714080642085,-1572.19,0.00010958,2]
[323543692,1714080642094,-500.0,0.00010958,2]
[323543693,1714080642104,-2319.64,0.00010958,2]
[323543694,1714080642113,-501.67808095,0.00010958,2]
[323543695,1714080642123,-1249.15,0.00010958,2]
[323543696,1714080642132,-1138.02,0.00010958,2]
[323543697,1714080642142,-500.0,0.00010958,2]
[323543698,1714080642152,-450.0,0.00010958,2]
[323543699,1714080642162,-500.0,0.00010958,2]
[323543700,1714080642171,-380.836241,0.00010958,2]
[323543701,1714080642181,-500.0,0.00010958,2]
[323543702,1714080642191,-500.0,0.00010958,2]
[323543703,1714080642201,-500.0,0.00010958,2]
[323543704,1714080642210,-1373.13,0.00010958,2]
[323543705,1714080642220,-646.82,0.00010958,2]
[323543706,1714080642229,-4659.58,0.00010958,2]
[323543707,1714080642239,-500.0,0.00010958,2]
[323543708,1714080642248,-510.2208351,0.00010958,2]
[323543709,1714080642257,-1134.99,0.00010958,2]
[323543710,1714080642267,-594.16095566,0.00010958,2]
[323543711,1714080642276,-500.0,0.00010958,2]
[323543712,1714080642286,-886.17,0.00010958,2]
[323543713,1714080642296,-1226.99,0.00010958,2]
[323543714,1714080642304,-9497.36,0.00010958,2]
[323543715,1714080642314,-523.69,0.00010958,2]
[323543716,1714080642323,-500.0,0.00010958,2]
[323543717,1714080642332,-500.0,0.00010958,2]
[323543718,1714080642342,-500.0,0.00010958,2]
[323543719,1714080642351,-809.32,0.00010958,2]
[323543720,1714080642361,-1106.96,0.00010958,2]
[323543721,1714080642370,-1314.86,0.00010958,2]
[323543722,1714080642380,-500.0,0.00010958,2]
[323543723,1714080642390,-503.90830767,0.00010958,2]
[323543724,1714080642399,-500.0,0.00010958,2]
[323543725,1714080642409,-500.0,0.00010958,2]
[323543728,1714080642419,-834.43,0.00010958,2]
[323543731,1714080642429,-704.8,0.00010958,2]
[323543734,1714080642438,-500.0,0.00010958,2]
[323543737,1714080642447,-509.11121366,0.00010958,2]
[323543740,1714080642456,-305.21443504,0.00010958,2]
[323543741,1714080642465,-500.0,0.00010958,2]
[323543743,1714080642475,-1189.55,0.00010958,2]
[323543745,1714080642484,-500.0,0.00010958,2]
[323543747,1714080642493,-500.0,0.00010958,2]
[323543750,1714080642502,-500.0,0.00010958,2]
[323543753,1714080642513,-1383.71,0.00010958,2]
[323543755,1714080642525,-500.0,0.00010958,2]
[323543757,1714080642535,-500.0,0.00010958,2]
[323543759,1714080642546,-500.0,0.00010958,2]
[323543762,1714080642554,-1264.18,0.00010958,2]
[323543764,1714080642563,-1756.87,0.00010958,2]
[323543766,1714080642572,-4390.51,0.00010958,2]
[323543767,1714080642582,-500.0,0.00010958,2]
[323543770,1714080642592,-500.0,0.00010958,2]
[323543777,1714080642783,-500.0,0.00010958,2]
[323543778,1714080642793,-674.2,0.00010958,2]
[323543779,1714080642804,-500.0,0.00010958,2]
[323543780,1714080642814,-500.0,0.00010958,2]
[323543781,1714080642823,-500.0,0.00010958,2]
[323543782,1714080642835,-500.0,0.00010958,2]
[323543783,1714080642846,-500.0,0.00010958,2]
[323543784,1714080642854,-500.0,0.00010958,2]
[323543785,1714080642866,-500.0,0.00010958,2]
[323543786,1714080642877,-2386.26,0.00010958,2]
[323543787,1714080642888,-500.0,0.00010958,2]
[323543788,1714080642899,-1647.79,0.00010958,2]
[323543789,1714080642908,-500.0,0.00010958,2]
[323543790,1714080642917,-2185.12,0.00010958,2]
[323543791,1714080642927,-776.59,0.00010958,2]
[323543792,1714080642936,-500.0,0.00010958,2]
[323543793,1714080642945,-500.0,0.00010958,2]
[323543794,1714080642954,-500.0,0.00010958,2]
[323543795,1714080642963,-500.0,0.00010958,2]
[323543796,1714080642972,-500.0,0.00010958,2]
[323543797,1714080642981,-596.65250189,0.00010958,2]
[323543798,1714080642991,-1418.4,0.00010958,2]
[323543799,1714080643000,-500.0,0.00010958,2]
[323543800,1714080643009,-530.36929494,0.00010958,2]
[323543801,1714080643018,-12524.16,0.00010958,2]
[323543802,1714080643027,-500.0,0.00010958,2]
[323543803,1714080643037,-1640.7,0.00010958,2]
[323543804,1714080643047,-500.0,0.00010958,2]
[323543805,1714080643056,-834.26,0.00010958,2]
[323543806,1714080643066,-500.0,0.00010958,2]
[323543807,1714080643075,-500.0,0.00010958,2]
[323543808,1714080643085,-500.0,0.00010958,2]
[323543809,1714080643094,-500.0,0.00010958,2]
[323543810,1714080643103,-500.0,0.00010958,2]
[323543811,1714080643113,-646.81481525,0.00010958,2]
[323543812,1714080643122,-500.0,0.00010958,2]
[323543813,1714080643131,-221.85,0.00010958,2]
[323543815,1714080643140,-500.0,0.00010958,2]
[323543817,1714080643149,-2149.82,0.00010958,2]
[323543819,1714080643158,-500.0,0.00010958,2]
[323543821,1714080643168,-2225.49,0.00010958,2]
[323543823,1714080643177,-500.0,0.00010958,2]
[323543825,1714080643186,-500.0,0.00010958,2]
[323543827,1714080643196,-500.0,0.00010958,2]
[323543829,1714080643205,-500.0,0.00010958,2]
[323543831,1714080643214,-3310.47,0.00010958,2]
[323543833,1714080643223,-500.0,0.00010958,2]
[323543835,1714080643232,-736.51,0.00010958,2]
[323543837,1714080643242,-1159.51,0.00010958,2]
[323543839,1714080643251,-500.0,0.00010958,2]
[323543841,1714080643260,-500.0,0.00010958,2]
[323543843,1714080643269,-500.0,0.00010958,2]
[323543845,1714080643278,-500.0,0.00010958,2]
[323543847,1714080643287,-2668.16,0.00010958,2]
[323543850,1714080643296,-500.0,0.00010958,2]
[323543852,1714080643306,-746.14,0.00010958,2]
[323543854,1714080643315,-2716.71,0.00010958,2]
[323543856,1714080643324,-500.0,0.00010958,2]
[323543858,1714080643333,-500.0,0.00010958,2]
[323543859,1714080643342,-500.0,0.00010958,2]
[323543861,1714080643351,-500.0,0.00010958,2]
[323543863,1714080643360,-500.0,0.00010958,2]
[323543865,1714080643369,-630.93,0.00010958,2]
[323543867,1714080643378,-500.0,0.00010958,2]
[323543869,1714080643387,-500.0,0.00010958,2]
[323543871,1714080643397,-1366.68,0.00010958,2]
[323543874,1714080643406,-1628.53,0.00010958,2]
[323543875,1714080643415,-657.7,0.00010958,2]
[323543877,1714080643424,-500.0,0.00010958,2]
[323543880,1714080643434,-2570.45,0.00010958,2]
[323543881,1714080643443,-1656.95,0.00010958,2]
[323543882,1714080643452,-504.84142118,0.00010958,2]
[323543883,1714080643461,-500.0,0.00010958,2]
[323543884,1714080643470,-500.0,0.00010958,2]
[323543885,1714080643479,-763.84,0.00010958,2]
[323543886,1714080643488,-936.27,0.00010958,2]
[323543887,1714080643497,-937.43,0.00010958,2]
[323543888,1714080643507,-500.0,0.00010958,2]
[323543889,1714080643521,-19843.31,0.00010958,2]
[323543890,1714080643530,-500.0,0.00010958,2]
[323543891,1714080643539,-757.44,0.00010958,2]
[323543892,1714080643548,-2946.07,0.00010958,2]
[323543893,1714080643558,-3824.28,0.00010958,2]
[323543894,1714080643567,-490.19512067,0.00010958,2]
[323543895,1714080643576,-8720.88,0.00010958,2]
[323543897,1714080643585,-500.0,0.00010958,2]
[323543899,1714080643594,-910.21,0.00010958,2]
[323543901,1714080643604,-503.49443753,0.00010958,2]
[323543903,1714080643613,-500.0,0.00010958,2]
[323543905,1714080643623,-500.0,0.00010958,2]
[323543907,1714080643632,-712.96,0.00010958,2]
[323543909,1714080643641,-500.0,0.00010958,2]
[323543911,1714080643650,-500.0,0.00010958,2]
[323543913,1714080643660,-3945.49,0.00010958,2]
[323543915,1714080643669,-500.0,0.00010958,2]
[323543917,1714080643679,-500.0,0.00010958,2]
[323543919,1714080643688,-500.0,0.00010958,2]
[323543921,1714080643697,-710.77,0.00010958,2]
[323543923,1714080643706,-500.0,0.00010958,2]
[323543925,1714080643715,-1258.76,0.00010958,2]
[323543927,1714080643724,-500.0,0.00010958,2]
[323543929,1714080643734,-1246.27,0.00010958,2]
[323543931,1714080643743,-500.0,0.00010958,2]
[323543933,1714080643752,-627.86,0.00010958,2]
[323543935,1714080643761,-500.0,0.00010958,2]
[323543937,1714080643770,-1283.91,0.00010958,2]
[323543939,1714080643779,-902.68,0.00010958,2]
[323543941,1714080643789,-500.0,0.00010958,2]
[323543943,1714080643797,-1335.71,0.00010958,2]
[323543945,1714080643806,-501.21856411,0.00010958,2]
[323543947,1714080643815,-2358.04,0.00010958,2]
[323543949,1714080643824,-2067.13,0.00010958,2]
[323543951,1714080643833,-5704.72,0.00010958,2]
[323543953,1714080643842,-500.0,0.00010958,2]
[323543955,1714080643851,-500.0,0.00010958,2]
[323543957,1714080643860,-505.8283254,0.00010958,2]
[323543959,1714080643870,-500.0,0.00010958,2]
[323543961,1714080643882,-500.0,0.00010958,2]
[323543963,1714080643891,-500.0,0.00010958,2]
[323543965,1714080643900,-502.41638982,0.00010958,2]
[323543967,1714080643909,-500.0,0.00010958,2]
[323543969,1714080643918,-500.0,0.00010958,2]
[323543971,1714080643928,-500.0,0.00010958,2]
[323543973,1714080643937,-708.39,0.00010958,2]
[323543975,1714080643946,-620.87,0.00010958,2]
[323543977,1714080643955,-1042.68,0.00010958,2]
[323543979,1714080643964,-1148.81,0.00010958,2]
[323543981,1714080643973,-918.53,0.00010958,2]
[323543983,1714080643983,-529.48,0.00010958,2]
[323543985,1714080643992,-864.23,0.00010958,2]
[323543987,1714080644001,-500.0,0.00010958,2]
[323543989,1714080644010,-500.0,0.00010958,2]
[323543991,1714080644018,-501.53023701,0.00010958,2]
[323543993,1714080644028,-508.19,0.00010958,2]
[323543995,1714080644037,-1110.31,0.00010958,2]
[323543997,1714080644046,-895.22,0.00010958,2]
[323544000,1714080644056,-1782.03,0.00010958,2]
[323544002,1714080644065,-500.0,0.00010958,2]
[323544003,1714080644074,-1268.69,0.00010958,2]
[323544005,1714080644083,-3409.74,0.00010958,2]
[323544007,1714080644092,-500.0,0.00010958,2]
[323544009,1714080644101,-5291.88,0.00010958,2]
[323544011,1714080644110,-509.37862843,0.00010958,2]
[323544013,1714080644119,-4048.42,0.00010958,2]
[323544015,1714080644128,-500.0,0.00010958,2]
[323544017,1714080644138,-500.0,0.00010958,2]
[323544019,1714080644147,-1248.38,0.00010958,2]
[323544021,1714080644156,-167.66,0.00010958,2]
[323544023,1714080644165,-924.37,0.00010958,2]
[323544025,1714080644175,-1387.42,0.00010958,2]
[323544028,1714080644184,-848.96,0.00010958,2]
[323544029,1714080644193,-500.0,0.00010958,2]
[323544031,1714080644202,-4000.28,0.00010958,2]
[323544033,1714080644211,-500.0,0.00010958,2]
[323544035,1714080644220,-500.0,0.00010958,2]
[323544038,1714080644230,-532.83,0.00010958,2]
[323544040,1714080644239,-500.0,0.00010958,2]
[323544042,1714080644248,-1399.75,0.00010958,2]
[323544044,1714080644258,-500.0,0.00010958,2]
[323544046,1714080644267,-680.73,0.00010958,2]
[323544048,1714080644277,-719.22,0.00010958,2]
[323544050,1714080644286,-1327.22,0.00010958,2]
[323544052,1714080644296,-500.0,0.00010958,2]
[323544054,1714080644305,-500.0,0.00010958,2]
[323544056,1714080644314,-1935.44,0.00010958,2]
[323544058,1714080644323,-500.0,0.00010958,2]
[323544060,1714080644332,-501.50920273,0.00010958,2]
[323544062,1714080644341,-501.1842206,0.00010958,2]
[323544064,1714080644350,-653.71,0.00010958,2]
[323544066,1714080644359,-500.0,0.00010958,2]
[323544068,1714080644368,-500.0,0.00010958,2]
[323544070,1714080644377,-2632.01,0.00010958,2]
[323544072,1714080644386,-500.0,0.00010958,2]
[323544074,1714080644395,-500.0,0.00010958,2]
[323544075,1714080644404,-2791.77,0.00010958,2]
[323544077,1714080644414,-500.0,0.00010958,2]
[323544078,1714080644423,-616.15,0.00010958,2]
[323544079,1714080644432,-637.02,0.00010958,2]
[323544080,1714080644442,-501.24630836,0.00010958,2]
[323544081,1714080644451,-2007.13,0.00010958,2]
[323544082,1714080644460,-500.0,0.00010958,2]
[323544083,1714080644469,-500.0,0.00010958,2]
[323544084,1714080644478,-500.0,0.00010958,2]
[323544085,1714080644487,-504.34733002,0.00010958,2]
[323544086,1714080644496,-760.56,0.00010958,2]
[323544087,1714080644506,-1507.65,0.00010958,2]
[323544088,1714080644520,-1029.34,0.00010958,2]
[323544089,1714080644529,-500.0,0.00010958,2]
[323544090,1714080644539,-500.0,0.00010958,2]
[323544091,1714080644548,-500.0,0.00010958,2]
[323544092,1714080644558,-500.32914776,0.00010958,2]
[323544093,1714080644567,-500.0,0.00010958,2]
[323544094,1714080644576,-500.35,0.00010958,2]
[323544095,1714080644586,-500.0,0.00010958,2]
[323544096,1714080644596,-500.0,0.00010958,2]
[323544097,1714080644606,-500.0,0.00010958,2]
[323544098,1714080644615,-500.0,0.00010958,2]
[323544099,1714080644624,-500.0,0.00010958,2]
[323544100,1714080644633,-6288.41,0.00010958,2]
[323544101,1714080644642,-3879.23,0.00010958,2]
[323544102,1714080644652,-321.25185812,0.00010958,2]
[323544103,1714080644661,-503.32951796,0.00010958,2]
[323544104,1714080644670,-500.0,0.00010958,2]
[323544105,1714080644679,-500.0,0.00010958,2]
[323544106,1714080644689,-500.0,0.00010958,2]
[323544107,1714080644698,-500.0,0.00010958,2]
[323544108,1714080644707,-500.0,0.00010958,2]
[323544109,1714080644717,-500.0,0.00010958,2]
[323544110,1714080644727,-2519.04,0.00010958,2]
[323544111,1714080644736,-864.19,0.00010958,2]
[323544112,1714080644745,-500.0,0.00010958,2]
[323544113,1714080644754,-856.53,0.00010958,2]
[323544114,1714080644764,-306.56835033,0.00010958,2]
[323544115,1714080644773,-500.0,0.00010958,2]
[323544116,1714080644782,-500.0,0.00010958,2]
[323544117,1714080644792,-500.0,0.00010958,2]
[323544118,1714080644801,-500.0,0.00010958,2]
[323544119,1714080644810,-3702.09,0.00010958,2]
[323544120,1714080644819,-630.95,0.00010958,2]
[323544121,1714080644829,-500.0,0.00010958,2]
[323544122,1714080644837,-500.0,0.00010958,2]
[323544123,1714080644846,-500.0,0.00010958,2]
[323544124,1714080644855,-500.0,0.00010958,2]
[323544125,1714080644864,-500.0,0.00010958,2]
[323544126,1714080644873,-1737.92,0.00010958,2]
[323544127,1714080644882,-1303.57,0.00010958,2]
[323544128,1714080644891,-500.0,0.00010958,2]
[323544129,1714080644901,-795.74,0.00010958,2]
[323544130,1714080644910,-3277.12,0.00010958,2]
[323544131,1714080644919,-500.0,0.00010958,2]
[323544132,1714080644928,-1859.25,0.00010958,2]
[323544133,1714080644937,-983.89,0.00010958,2]
[323544134,1714080644945,-540.52,0.00010958,2]
[323544135,1714080644955,-500.0,0.00010958,2]
[323544136,1714080644965,-500.0,0.00010958,2]
[323544137,1714080644975,-500.0,0.00010958,2]
[323544138,1714080644984,-531.74951156,0.00010958,2]